[Event "Swedish U16 Team Championship 2019 - Final"]
[Site "Molnlycke Kulturhus, Biblioteksgatan 2, Molnlycke, Sweden"]
[Date "2019.08.16"]
[Round "2.1"]
[White "Soderstrom, Adrian"]
[Black "Sorensen, Hampus"]
[Result "0-1"]
[TimeControl "90 minutes + 30 seconds per move from move one."]
[BlackTitle "FM"]
[WhiteElo "1970"]
[BlackElo "2356"]

1. d4 {[%clk 01:30:47]} {[%emt 00:00:13]} d5 {[%clk 01:30:43]} {[%emt
00:00:17]} 2. c4 {[%clk 01:30:41]} {[%emt 00:00:36]} c6 {[%clk 01:30:50]}
{[%emt 00:00:23]} 3. cxd5 {[%clk 01:28:59]} {[%emt 00:02:12]} cxd5 {[%clk
01:31:00]} {[%emt 00:00:21]} 4. Nc3 {[%clk 01:29:22]} {[%emt 00:00:06]} Nc6
{[%clk 01:29:34]} {[%emt 00:01:57]} 5. e4 {[%clk 01:29:45]} {[%emt 00:00:06]}
e6 {[%clk 01:28:41]} {[%emt 00:01:23]} 6. e5 {[%clk 01:29:40]} {[%emt
00:00:35]} Nge7 {[%clk 01:25:33]} {[%emt 00:03:36]} 7. Nf3 {[%clk 01:29:58]}
{[%emt 00:00:12]} Nf5 {[%clk 01:23:57]} {[%emt 00:02:07]} 8. Be3 {[%clk
01:30:21]} {[%emt 00:00:07]} Be7 {[%clk 01:21:02]} {[%emt 00:03:26]} 9. Bd3
{[%clk 01:30:03]} {[%emt 00:00:47]} O-O {[%clk 01:19:51]} {[%emt 00:01:41]} 10.
O-O {[%clk 01:08:41]} {[%emt 00:21:52]} Nxe3 {[%clk 01:11:08]} {[%emt
00:09:15]} 11. fxe3 {[%clk 01:08:58]} {[%emt 00:00:12]} f5 {[%clk 01:11:08]}
{[%emt 00:00:31]} 12. exf6 {[%clk 01:07:07]} {[%emt 00:02:20]} Bxf6 {[%clk
01:11:02]} {[%emt 00:00:36]} 13. Rc1 {[%clk 01:02:09]} {[%emt 00:05:27]} Bd7
{[%clk 01:09:34]} {[%emt 00:02:00]} 14. Bb1 {[%clk 00:56:05]} {[%emt 00:06:33]}
Be8 {[%clk 01:06:35]} {[%emt 00:03:29]} 15. Ne5 {[%clk 00:42:06]} {[%emt
00:14:29]} Bxe5 {[%clk 00:59:56]} {[%emt 00:07:10]} 16. Bxh7+ {[%clk 00:41:07]}
{[%emt 00:01:28]} Kxh7 {[%clk 01:00:12]} {[%emt 00:00:14]} 17. Rxf8 {[%clk
00:41:21]} {[%emt 00:00:14]} Bd6 {[%clk 00:49:35]} {[%emt 00:11:08]} 18. Rf3
{[%clk 00:37:21]} {[%emt 00:04:29]} Kg8 {[%clk 00:47:54]} {[%emt 00:02:12]} 19.
Qc2 {[%clk 00:31:05]} {[%emt 00:06:45]} Nb4 {[%clk 00:41:15]} {[%emt 00:07:11]}
20. Qb3 {[%clk 00:22:52]} {[%emt 00:08:43]} Bh5 {[%clk 00:35:37]} {[%emt
00:06:09]} 21. Rff1 {[%clk 00:20:29]} {[%emt 00:02:52]} Qh4 {[%clk 00:35:01]}
{[%emt 00:01:07]} 22. h3 {[%clk 00:13:12]} {[%emt 00:07:46]} Qg3 {[%clk
00:35:04]} {[%emt 00:00:28]} 23. Ne4 {[%clk 00:13:23]} {[%emt 00:00:19]} Qh2+
{[%clk 00:32:37]} {[%emt 00:02:57]} 24. Kf2 {[%clk 00:13:44]} {[%emt 00:00:07]}
Nd3+ {[%clk 00:32:29]} {[%emt 00:00:39]} 25. Qxd3 {[%clk 00:13:53]} {[%emt
00:00:21]} dxe4 {[%clk 00:32:55]} {[%emt 00:00:04]} 0-1

[Event "Swedish U16 Team Championship 2019 - Final"]
[Site "Molnlycke Kulturhus, Biblioteksgatan 2, Molnlycke, Sweden"]
[Date "2019.08.16"]
[Round "2.2"]
[White "Trost, Edvin"]
[Black "Falkevall, Axel"]
[Result "1/2-1/2"]
[TimeControl "90 minutes + 30 seconds per move from move one."]
[WhiteElo "1951"]
[BlackElo "2046"]

1. e4 {[%clk 01:30:58]} e6 {[%clk 01:30:46]} {[%emt 00:00:15]} 2. d4 {[%clk
01:31:25]} {[%emt 00:00:04]} d5 {[%clk 01:31:11]} {[%emt 00:00:05]} 3. Nc3
{[%clk 01:31:46]} {[%emt 00:00:09]} Nf6 {[%clk 01:31:40]} {[%emt 00:00:02]} 4.
Bg5 {[%clk 01:32:11]} {[%emt 00:00:05]} Be7 {[%clk 01:32:06]} {[%emt 00:00:04]}
5. e5 {[%clk 01:32:36]} {[%emt 00:00:05]} Nfd7 {[%clk 01:32:26]} {[%emt
00:00:09]} 6. Bxe7 {[%clk 01:32:57]} {[%emt 00:00:10]} Qxe7 {[%clk 01:32:54]}
{[%emt 00:00:03]} 7. f4 {[%clk 01:33:26]} O-O {[%clk 01:32:42]} {[%emt
00:00:41]} 8. Nf3 {[%clk 01:33:28]} {[%emt 00:00:28]} c5 {[%clk 01:32:53]}
{[%emt 00:00:19]} 9. dxc5 {[%clk 01:33:34]} {[%emt 00:00:24]} Nxc5 {[%clk
01:32:16]} {[%emt 00:01:07]} 10. Qd2 {[%clk 01:32:21]} {[%emt 00:01:43]} Nc6
{[%clk 01:32:32]} {[%emt 00:00:14]} 11. Bd3 {[%emt 00:00:31]} Bd7 {[%clk
01:28:58]} {[%emt 00:04:03]} 12. O-O-O {[%clk 01:31:30]} {[%emt 00:01:22]} a6
{[%clk 01:27:46]} {[%emt 00:01:42]} 13. Ng5 {[%clk 01:27:49]} {[%emt 00:04:10]}
h6 {[%clk 01:24:04]} {[%emt 00:04:13]} 14. Nf3 {[%clk 01:25:38]} {[%emt
00:02:40]} b5 {[%clk 01:22:45]} {[%emt 00:01:49]} 15. Qe3 {[%clk 01:23:40]}
{[%emt 00:02:27]} b4 {[%clk 01:17:20]} {[%emt 00:05:56]} 16. Ne2 {[%clk
01:23:21]} {[%emt 00:00:49]} b3 {[%clk 01:14:35]} {[%emt 00:03:16]} 17. axb3
{[%clk 01:21:52]} {[%emt 00:02:00]} Nb4 {[%clk 01:13:16]} {[%emt 00:01:48]} 18.
Nfd4 {[%clk 01:14:14]} {[%emt 00:08:16]} Rfc8 {[%clk 01:09:44]} {[%emt
00:03:53]} 19. Kb1 {[%clk 01:14:11]} {[%emt 00:00:35]} a5 {[%clk 01:08:37]}
{[%emt 00:01:37]} 20. Bb5 {[%clk 00:58:30]} {[%emt 00:16:10]} Rcb8 {[%clk
00:53:10]} {[%emt 00:15:59]} 21. Bxd7 {[%clk 00:43:26]} {[%emt 00:15:34]} Qxd7
{[%clk 00:52:10]} {[%emt 00:01:30]} 22. Nc1 {[%clk 00:43:53]} {[%emt 00:00:03]}
Nc6 {[%clk 00:34:09]} {[%emt 00:18:24]} 23. Qc3 {[%clk 00:34:19]} {[%emt
00:10:12]} Nxd4 {[%clk 00:30:46]} {[%emt 00:03:53]} 24. Qxc5 {[%clk 00:34:45]}
{[%emt 00:00:04]} Nf5 {[%clk 00:29:04]} {[%emt 00:02:09]} 25. Rd3 {[%clk
00:25:35]} {[%emt 00:09:43]} a4 {[%clk 00:27:20]} {[%emt 00:02:14]} 26. b4
{[%clk 00:20:37]} {[%emt 00:05:28]} Rb5 {[%clk 00:25:28]} {[%emt 00:02:20]} 27.
Qc3 {[%clk 00:20:37]} {[%emt 00:00:32]} Qb7 {[%clk 00:21:33]} {[%emt 00:04:24]}
28. Na2 {[%clk 00:20:38]} {[%emt 00:00:29]} d4 {[%clk 00:15:57]} {[%emt
00:06:06]} 29. Qd2 {[%clk 00:20:51]} {[%emt 00:00:18]} Rd5 {[%clk 00:14:52]}
{[%emt 00:01:35]} 30. Re1 {[%clk 00:06:58]} {[%emt 00:14:23]} Rad8 {[%clk
00:11:28]} {[%emt 00:03:54]} 31. Qc1 {[%clk 00:06:00]} {[%emt 00:01:28]} Qa6
{[%clk 00:09:06]} {[%emt 00:02:50]} 32. Re4 {[%clk 00:00:32]} {[%emt 00:06:00]}
Rc8 {[%clk 00:05:35]} {[%emt 00:04:01]} 33. Re2 {[%clk 00:00:33]} {[%emt
00:00:28]} Ne3 {[%clk 00:05:30]} {[%emt 00:00:34]} 34. Nc3 {[%clk 00:00:31]}
{[%emt 00:00:34]} Rdd8 {[%clk 00:04:02]} {[%emt 00:01:56]} 35. Red2 {[%clk
00:00:38]} {[%emt 00:00:25]} Qb6 {[%clk 00:03:12]} {[%emt 00:01:18]} 36. Ne2
{[%clk 00:00:34]} {[%emt 00:00:35]} Nc4 {[%clk 00:02:45]} {[%emt 00:00:56]} 37.
Rd1 {[%clk 00:00:56]} {[%emt 00:00:09]} Ne3 {[%clk 00:02:40]} {[%emt 00:00:35]}
38. R1d2 {[%clk 00:01:25]} {[%emt 00:00:01]} Nc4 {[%clk 00:02:47]} {[%emt
00:00:24]} 39. Rd1 {[%clk 00:00:38]} {[%emt 00:01:16]} Ne3 {[%clk 00:02:59]}
{[%emt 00:00:17]} 40. R1d2 {[%clk 00:00:36]} {[%emt 00:00:32]} Nc4 {[%clk
00:02:42]} {[%emt 00:00:47]} 1/2-1/2

[Event "Swedish U16 Team Championship 2019 - Final"]
[Site "Molnlycke Kulturhus, Biblioteksgatan 2, Molnlycke, Sweden"]
[Date "2019.08.16"]
[Round "2.3"]
[White "Grahn, Vidar"]
[Black "Svetic, Matija"]
[Result "1-0"]
[TimeControl "90 minutes + 30 seconds per move from move one."]
[WhiteElo "1898"]
[BlackElo "1775"]

1. e4 {[%clk 01:30:55]} {[%emt 00:00:04]} c5 {[%clk 01:30:48]} {[%emt
00:00:13]} 2. Nf3 {[%clk 01:31:20]} {[%emt 00:00:04]} e6 {[%clk 01:31:10]}
{[%emt 00:00:09]} 3. d4 {[%clk 01:31:24]} {[%emt 00:00:26]} cxd4 {[%clk
01:31:35]} {[%emt 00:00:05]} 4. Nxd4 {[%clk 01:31:49]} {[%emt 00:00:04]} a6
{[%clk 01:31:58]} {[%emt 00:00:08]} 5. Nc3 {[%clk 01:30:39]} {[%emt 00:01:39]}
b5 {[%clk 01:31:27]} {[%emt 00:01:01]} 6. Bd3 {[%clk 01:27:20]} {[%emt
00:03:49]} Qb6 {[%clk 01:31:07]} {[%emt 00:00:51]} 7. Nb3 {[%clk 01:23:29]}
{[%emt 00:04:20]} Qc7 {[%clk 01:29:33]} {[%emt 00:02:04]} 8. O-O {[%clk
01:21:34]} {[%emt 00:02:25]} Bb7 {[%clk 01:29:28]} {[%emt 00:00:36]} 9. f4
{[%clk 01:12:36]} {[%emt 00:09:28]} d6 {[%clk 01:29:06]} {[%emt 00:00:52]} 10.
f5 {[%clk 01:07:12]} {[%emt 00:05:53]} Nf6 {[%clk 01:27:27]} {[%emt 00:02:10]}
11. Bg5 {[%clk 01:04:05]} {[%emt 00:03:37]} Nbd7 {[%clk 01:27:15]} {[%emt
00:00:42]} 12. Qe2 {[%clk 01:02:33]} {[%emt 00:02:01]} Be7 {[%clk 01:21:45]}
{[%emt 00:06:01]} 13. Rae1 {[%clk 00:58:10]} {[%emt 00:04:53]} Ne5 {[%clk
01:16:48]} {[%emt 00:05:28]} 14. Kh1 {[%clk 00:53:57]} {[%emt 00:04:42]} Nfg4
{[%clk 01:12:58]} {[%emt 00:04:21]} 15. Bf4 {[%clk 00:46:36]} {[%emt 00:07:51]}
h5 {[%clk 01:07:06]} {[%emt 00:06:22]} 16. h3 {[%clk 00:45:09]} {[%emt
00:01:56]} Qb6 {[%clk 00:50:35]} {[%emt 00:17:03]} 17. Bxe5 Nxe5 18. Qe3 {[%clk
00:43:15]} {[%emt 00:00:01]} Qd8 {[%clk 00:44:25]} {[%emt 00:00:20]} 19. Nd4
{[%clk 00:38:08]} {[%emt 00:05:36]} Bg5 {[%clk 00:40:15]} {[%emt 00:04:41]} 20.
Qe2 {[%clk 00:33:03]} {[%emt 00:05:33]} Bh4 {[%emt 00:02:52]} 21. Rd1 {[%clk
00:32:03]} {[%emt 00:01:28]} Qe7 {[%clk 00:31:40]} {[%emt 00:06:47]} 22. a4
{[%clk 00:29:12]} {[%emt 00:03:21]} bxa4 {[%clk 00:31:21]} {[%emt 00:00:50]} 23.
fxe6 {[%clk 00:28:05]} {[%emt 00:01:37]} fxe6 {[%clk 00:31:25]} {[%emt
00:00:26]} 24. Bc4 {[%clk 00:27:28]} {[%emt 00:01:06]} Bc8 {[%clk 00:28:10]}
{[%emt 00:03:46]} 25. Nxa4 {[%clk 00:24:12]} {[%emt 00:03:47]} Rb8 {[%clk
00:24:38]} {[%emt 00:04:02]} 26. Bxa6 {[%clk 00:21:23]} {[%emt 00:03:18]} Bd7
{[%clk 00:24:43]} {[%emt 00:00:25]} 27. b3 {[%clk 00:20:48]} {[%emt 00:01:05]}
Ng4 {[%clk 00:23:46]} {[%emt 00:01:27]} 28. Nb5 {[%clk 00:18:59]} {[%emt
00:02:19]} Bg3 {[%clk 00:22:14]} {[%emt 00:02:02]} 29. Qd3 {[%clk 00:13:30]}
{[%emt 00:05:58]} Nf2+ {[%clk 00:21:30]} {[%emt 00:01:14]} 30. Rxf2 {[%clk
00:13:51]} {[%emt 00:00:09]} Bxf2 {[%clk 00:21:34]} {[%emt 00:00:26]} 31. Nxd6+
{[%clk 00:14:09]} {[%emt 00:00:12]} Kf8 {[%clk 00:21:19]} {[%emt 00:00:45]} 32.
Rf1 {[%clk 00:13:42]} {[%emt 00:00:57]} Kg8 {[%clk 00:21:01]} {[%emt 00:00:47]}
33. Rxf2 {[%clk 00:13:07]} {[%emt 00:01:05]} Bxa4 {[%clk 00:21:20]} {[%emt
00:00:11]} 34. bxa4 {[%clk 00:12:59]} {[%emt 00:00:38]} Rb6 {[%clk 00:21:29]}
{[%emt 00:00:22]} 35. Nc8 {[%clk 00:10:05]} {[%emt 00:03:23]} Rb1+ {[%clk
00:21:43]} {[%emt 00:00:16]} 36. Rf1 {[%clk 00:10:08]} {[%emt 00:00:26]} Rxf1+
{[%clk 00:20:58]} {[%emt 00:01:16]} 37. Qxf1 {[%clk 00:10:34]} {[%emt
00:00:04]} Qc7 {[%clk 00:19:50]} {[%emt 00:01:38]} 38. Qc4 {[%clk 00:10:05]}
{[%emt 00:00:57]} Qe5 {[%clk 00:17:03]} {[%emt 00:03:19]} 39. c3 {[%clk
00:08:23]} {[%emt 00:02:12]} Kh7 {[%clk 00:15:14]} {[%emt 00:02:18]} 40. Qd4
{[%clk 00:07:13]} {[%emt 00:01:41]} Qg5 {[%clk 00:11:09]} {[%emt 00:04:33]} 41.
e5 {[%clk 00:06:34]} {[%emt 00:01:10]} Rf8 {[%clk 00:07:41]} {[%emt 00:03:58]}
42. Bd3+ {[%clk 00:05:09]} {[%emt 00:01:55]} Kh6 {[%clk 00:07:00]} {[%emt
00:01:11]} 43. Qe4 {[%clk 00:04:51]} {[%emt 00:00:46]} g6 {[%clk 00:07:07]}
{[%emt 00:00:25]} 44. Ne7 {[%clk 00:05:02]} {[%emt 00:00:18]} Qc1+ {[%clk
00:04:54]} {[%emt 00:02:43]} 45. Kh2 {[%clk 00:05:18]} {[%emt 00:00:13]} Rf5
{[%clk 00:05:03]} {[%emt 00:00:21]} 46. Nxf5+ {[%clk 00:04:52]} {[%emt
00:00:56]} gxf5 {[%clk 00:05:03]} {[%emt 00:00:31]} 47. Qd4 {[%clk 00:03:23]}
{[%emt 00:01:58]} Kg5 {[%clk 00:04:58]} {[%emt 00:00:37]} 48. h4+ {[%clk
00:03:17]} {[%emt 00:00:36]} Kg6 {[%clk 00:05:18]} {[%emt 00:00:10]} 49. a5
{[%clk 00:03:03]} {[%emt 00:00:44]} Qe1 {[%clk 00:05:46]} {[%emt 00:00:02]} 50.
a6 {[%clk 00:03:11]} {[%emt 00:00:22]} Kg7 {[%clk 00:05:37]} {[%emt 00:00:38]}
51. a7 {[%clk 00:03:21]} {[%emt 00:00:20]} f4 {[%clk 00:06:04]} {[%emt
00:00:04]} 52. Qd7+ {[%clk 00:03:42]} {[%emt 00:00:07]} Kf8 {[%clk 00:06:23]}
{[%emt 00:00:13]} 53. a8=R# {[%emt 00:00:13]} 1-0

[Event "Swedish U16 Team Championship 2019 - Final"]
[Site "Molnlycke Kulturhus, Biblioteksgatan 2, Molnlycke, Sweden"]
[Date "2019.08.16"]
[Round "2.4"]
[White "Wikman, Viktor 2006"]
[Black "Bergqvist, Gustav 2004"]
[Result "0-1"]
[TimeControl "90 minutes + 30 seconds per move from move one."]
[WhiteElo "1662"]
[BlackElo "1833"]

1. d4 {[%clk 01:30:45]} {[%emt 00:00:14]} d5 {[%clk 01:30:53]} {[%emt
00:00:07]} 2. c4 {[%clk 01:31:10]} {[%emt 00:00:04]} e6 {[%clk 01:31:21]}
{[%emt 00:00:04]} 3. Nc3 {[%clk 01:31:34]} {[%emt 00:00:07]} Nf6 {[%clk
01:31:49]} {[%emt 00:00:02]} 4. Bg5 {[%clk 01:31:56]} {[%emt 00:00:08]} Be7
{[%clk 01:31:00]} {[%emt 00:01:19]} 5. e3 {[%clk 01:32:00]} {[%emt 00:00:27]}
O-O {[%clk 01:30:44]} {[%emt 00:00:46]} 6. Nf3 {[%clk 01:32:10]} {[%emt
00:00:21]} b6 {[%clk 01:30:44]} {[%emt 00:00:29]} 7. cxd5 {[%clk 01:27:53]}
{[%emt 00:04:47]} exd5 {[%clk 01:27:05]} {[%emt 00:04:09]} 8. Be2 {[%clk
01:25:16]} {[%emt 00:03:07]} Bb7 {[%clk 01:26:48]} {[%emt 00:00:45]} 9. O-O
{[%clk 01:23:42]} {[%emt 00:02:05]} Nbd7 {[%clk 01:23:25]} {[%emt 00:03:53]} 10.
Rc1 {[%clk 01:19:59]} {[%emt 00:04:13]} c5 {[%clk 01:19:17]} {[%emt 00:04:37]}
11. Qc2 {[%clk 01:17:11]} {[%emt 00:03:18]} Ne4 {[%clk 01:16:28]} {[%emt
00:03:20]} 12. Bf4 {[%clk 01:07:43]} {[%emt 00:09:58]} Ndf6 {[%clk 01:07:47]}
{[%emt 00:09:11]} 13. Ne5 {[%clk 01:06:26]} {[%emt 00:01:47]} Nxc3 {[%clk
00:56:53]} {[%emt 00:11:24]} 14. bxc3 {[%clk 01:05:55]} {[%emt 00:01:01]} Rc8
{[%clk 00:53:44]} {[%emt 00:03:38]} 15. Qb1 {[%clk 01:02:38]} {[%emt 00:03:48]}
Ne4 {[%clk 00:53:47]} {[%emt 00:00:27]} 16. Rfd1 {[%clk 01:00:41]} {[%emt
00:02:26]} cxd4 {[%clk 00:53:02]} {[%emt 00:01:16]} 17. Bb5 {[%clk 00:50:04]}
{[%emt 00:11:07]} Nxc3 {[%clk 00:48:44]} {[%emt 00:04:48]} 18. Rxc3 {[%clk
00:49:43]} {[%emt 00:00:50]} dxc3 {[%clk 00:48:56]} {[%emt 00:00:18]} 19. Nd7
{[%clk 00:50:03]} {[%emt 00:00:11]} c2 {[%clk 00:49:06]} {[%emt 00:00:20]} 20.
Kh1 {[%clk 00:48:12]} {[%emt 00:02:21]} cxb1=Q {[%clk 00:49:05]} {[%emt
00:00:31]} 21. Bc7 {[%clk 00:47:46]} {[%emt 00:00:56]} Qxd1+ {[%clk 00:49:19]}
{[%emt 00:00:16]} 22. Bf1 {[%clk 00:48:11]} {[%emt 00:00:05]} Qxf1# {[%clk
00:49:40]} {[%emt 00:00:09]} 0-1

[Event "Swedish U16 Team Championship 2019 - Final"]
[Site "Molnlycke Kulturhus, Biblioteksgatan 2, Molnlycke, Sweden"]
[Date "2019.08.16"]
[Round "2.5"]
[White "Isaksson, Philip"]
[Black "Backlund, Elias"]
[Result "0-1"]
[TimeControl "90 minutes + 30 seconds per move from move one."]
[WhiteElo "1675"]
[BlackElo "1603"]

1. e4 {[%clk 01:30:57]} {[%emt 00:00:03]} d5 {[%clk 01:30:53]} {[%emt
00:00:08]} 2. exd5 {[%clk 01:31:22]} {[%emt 00:00:04]} Qxd5 {[%clk 01:31:16]}
{[%emt 00:00:07]} 3. d4 {[%clk 01:31:48]} {[%emt 00:00:04]} c5 {[%clk
01:30:19]} {[%emt 00:01:26]} 4. Nf3 {[%clk 01:26:33]} {[%emt 00:05:45]} cxd4
{[%clk 01:29:23]} {[%emt 00:01:27]} 5. Qxd4 {[%clk 01:25:52]} {[%emt 00:01:11]}
Qxd4 {[%clk 01:28:29]} {[%emt 00:01:23]} 6. Nxd4 {[%clk 01:23:55]} {[%emt
00:02:27]} a6 {[%clk 01:27:35]} {[%emt 00:01:26]} 7. Bd3 {[%clk 01:21:44]}
{[%emt 00:02:40]} e5 {[%clk 01:27:23]} {[%emt 00:00:41]} 8. Nb3 {[%clk
01:19:10]} {[%emt 00:03:04]} Bd6 {[%clk 01:25:21]} {[%emt 00:02:32]} 9. Nc3
{[%clk 01:18:31]} {[%emt 00:01:09]} Be6 {[%clk 01:23:32]} {[%emt 00:02:19]} 10.
Be3 {[%clk 01:16:07]} {[%emt 00:02:54]} f5 {[%clk 01:22:09]} {[%emt 00:01:52]}
11. Nc5 {[%clk 01:02:26]} {[%emt 00:14:12]} Bxc5 {[%clk 01:18:33]} {[%emt
00:04:11]} 12. Bxc5 {[%clk 01:02:43]} {[%emt 00:00:07]} Nc6 {[%clk 01:17:50]}
{[%emt 00:01:12]} 13. f3 {[%clk 00:58:24]} {[%emt 00:04:50]} Nge7 {[%clk
01:14:33]} {[%emt 00:03:46]} 14. a3 {[%clk 00:56:29]} {[%emt 00:02:26]} O-O
{[%clk 01:13:15]} {[%emt 00:01:47]} 15. O-O {[%clk 00:56:17]} {[%emt 00:00:42]}
Rfe8 {[%clk 01:10:19]} {[%emt 00:03:26]} 16. Nd1 {[%clk 00:50:37]} {[%emt
00:06:11]} Ng6 {[%clk 01:05:52]} {[%emt 00:04:57]} 17. Ne3 {[%clk 00:47:16]}
{[%emt 00:03:52]} Nce7 {[%clk 01:00:18]} {[%emt 00:06:02]} 18. Bc4 {[%clk
00:36:14]} {[%emt 00:11:33]} Kf7 {[%clk 00:58:31]} {[%emt 00:02:16]} 19. Bxe6+
{[%clk 00:34:34]} {[%emt 00:02:11]} Kxe6 {[%clk 00:58:51]} {[%emt 00:00:10]} 20.
Rfd1 {[%clk 00:34:17]} {[%emt 00:00:46]} Red8 {[%clk 00:54:01]} {[%emt
00:05:21]} 21. b4 {[%clk 00:24:52]} {[%emt 00:09:55]} b5 {[%clk 00:50:07]}
{[%emt 00:04:23]} 22. Bb6 {[%clk 00:08:07]} {[%emt 00:17:15]} Rd6 {[%clk
00:46:54]} {[%emt 00:03:41]} 23. Bc5 {[%clk 00:06:40]} {[%emt 00:01:59]} Rdd8
{[%clk 00:46:56]} {[%emt 00:00:27]} 24. Bb6 {[%clk 00:06:53]} {[%emt 00:00:17]}
Rd7 {[%clk 04:14:54]} {[%emt 00:03:42]} 25. Rxd7 {[%clk 00:06:12]} {[%emt
00:01:11]} Kxd7 {[%clk 00:44:03]} {[%emt 00:00:10]} 26. Rd1+ {[%clk 00:06:08]}
{[%emt 00:00:34]} Kc6 {[%clk 00:43:06]} {[%emt 00:01:27]} 27. Bc5 {[%clk
00:06:28]} {[%emt 00:00:10]} f4 {[%clk 00:40:01]} {[%emt 00:03:35]} 28. Rd6+
{[%clk 00:04:50]} {[%emt 00:02:09]} Kb7 {[%clk 00:39:29]} {[%emt 00:01:02]} 29.
Ng4 {[%clk 00:03:02]} {[%emt 00:02:17]} Kc7 {[%clk 00:35:59]} {[%emt 00:04:00]}
30. Nf2 {[%clk 00:01:51]} {[%emt 00:01:41]} Nf5 {[%clk 00:34:34]} {[%emt
00:01:55]} 31. Re6 {[%clk 00:00:33]} {[%emt 00:01:49]} Nd4 {[%clk 00:26:20]}
{[%emt 00:08:43]} 32. Ne4 {[%clk 00:00:32]} {[%emt 00:00:31]} 0-1

[Event "Swedish U16 Team Championship 2019 - Final"]
[Site "Molnlycke Kulturhus, Biblioteksgatan 2, Molnlycke, Sweden"]
[Date "2019.08.16"]
[Round "2.6"]
[White "Sandberg, Simon"]
[Black "Tran, Alva Ling"]
[Result "0-1"]
[TimeControl "90 minutes + 30 seconds per move from move one."]
[WhiteElo "1375"]
[BlackElo "1735"]

1. e4 {[%clk 01:30:59]} c5 {[%clk 01:30:51]} {[%emt 00:00:11]} 2. Nf3 {[%clk
01:31:12]} {[%emt 00:00:15]} e6 {[%clk 01:31:09]} {[%emt 00:00:12]} 3. Nc3
{[%clk 01:31:32]} {[%emt 00:00:11]} a6 {[%clk 01:30:59]} {[%emt 00:00:39]} 4.
a4 {[%clk 01:31:58]} {[%emt 00:00:04]} Qc7 {[%clk 01:30:04]} {[%emt 00:01:25]}
5. d3 {[%clk 01:32:11]} {[%emt 00:00:17]} Nc6 {[%clk 01:29:43]} {[%emt
00:00:51]} 6. g3 {[%clk 01:32:14]} {[%emt 00:00:28]} Nf6 {[%clk 01:28:50]}
{[%emt 00:01:23]} 7. Bg2 {[%clk 01:32:38]} {[%emt 00:00:06]} Be7 {[%clk
01:27:08]} {[%emt 00:02:11]} 8. O-O {[%clk 01:32:45]} {[%emt 00:00:23]} O-O
{[%clk 01:27:30]} {[%emt 00:00:08]} 9. Nh4 {[%clk 01:32:42]} {[%emt 00:00:33]}
Nd4 {[%clk 01:25:21]} {[%emt 00:02:38]} 10. Nf3 {[%clk 01:30:38]} {[%emt
00:02:34]} d6 {[%clk 01:23:51]} {[%emt 00:02:01]} 11. Nxd4 {[%clk 01:29:38]}
{[%emt 00:01:30]} cxd4 {[%clk 01:24:12]} {[%emt 00:00:08]} 12. Ne2 {[%clk
01:29:59]} {[%emt 00:00:10]} e5 {[%clk 01:23:52]} {[%emt 00:00:50]} 13. Qd2
{[%clk 01:27:07]} {[%emt 00:03:22]} Bd7 {[%clk 01:18:09]} {[%emt 00:06:12]} 14.
c3 {[%clk 01:26:18]} {[%emt 00:01:19]} dxc3 {[%clk 01:18:15]} {[%emt 00:00:24]}
15. Qxc3 {[%clk 01:26:01]} {[%emt 00:00:46]} Rac8 {[%clk 01:16:18]} {[%emt
00:02:27]} 16. Be3 {[%clk 01:21:08]} {[%emt 00:05:24]} Bc6 {[%clk 01:04:05]}
{[%emt 00:12:44]} 17. Rfc1 {[%clk 01:14:27]} {[%emt 00:07:11]} Qd7 {[%clk
00:58:31]} {[%emt 00:06:03]} 18. Qd2 {[%clk 01:14:29]} {[%emt 00:00:25]} Bxa4
{[%clk 00:53:34]} {[%emt 00:05:30]} 19. Nc3 {[%clk 01:11:39]} {[%emt 00:03:21]}
Bc6 {[%clk 00:50:40]} {[%emt 00:03:24]} 20. Qc2 {[%clk 01:07:16]} {[%emt
00:04:54]} d5 {[%clk 00:49:10]} {[%emt 00:01:59]} 21. exd5 {[%clk 01:05:49]}
{[%emt 00:01:56]} Nxd5 {[%clk 00:49:13]} {[%emt 00:00:27]} 22. Qd2 {[%clk
01:05:52]} {[%emt 00:00:27]} Nxe3 {[%clk 00:45:47]} {[%emt 00:03:56]} 23. fxe3
{[%clk 01:05:01]} {[%emt 00:01:20]} Rfd8 {[%clk 00:43:17]} {[%emt 00:03:00]} 24.
Bxc6 {[%clk 01:04:34]} {[%emt 00:00:58]} Rxc6 {[%clk 00:43:27]} {[%emt
00:00:20]} 25. Rd1 {[%clk 01:02:39]} {[%emt 00:02:25]} Rd6 {[%clk 00:41:28]}
{[%emt 00:02:29]} 26. Qe2 {[%clk 01:01:08]} {[%emt 00:02:02]} Rxd3 {[%clk
00:41:11]} {[%emt 00:00:46]} 27. Rxd3 {[%clk 01:01:33]} {[%emt 00:00:04]} Qxd3
{[%clk 00:41:31]} {[%emt 00:00:11]} 28. Qxd3 {[%clk 01:01:51]} {[%emt
00:00:12]} Rxd3 {[%clk 00:41:54]} {[%emt 00:00:07]} 29. Rc1 {[%clk 01:00:13]}
{[%emt 00:02:09]} f6 {[%clk 00:39:38]} {[%emt 00:02:46]} 30. Kf1 {[%clk
01:00:22]} {[%emt 00:00:21]} Rd2 {[%clk 00:39:22]} {[%emt 00:00:45]} 31. Kg1
{[%clk 00:57:57]} {[%emt 00:02:55]} Rxb2 {[%clk 00:38:29]} {[%emt 00:01:24]} 32.
Nd5 {[%clk 00:58:11]} {[%emt 00:00:16]} Bd6 {[%clk 00:38:07]} {[%emt 00:00:52]}
33. Rd1 {[%clk 00:57:45]} {[%emt 00:01:26]} Bc5 {[%clk 00:37:34]} {[%emt
00:01:33]} 0-1